[Event "Djerba Festival Blitz 2025"]
[Site "Djerba"]
[Date "2025.02.21"]
[Round "7.32"]
[White "Ferahi, Tarik"]
[Black "Baduel Ghalimi, Maxence"]
[Result "1-0"]
[ECO "B54"]
[WhiteElo "1612"]
[BlackElo "1506"]
[PlyCount "72"]
[EventDate "2025.02.15"]
[EventType "swiss"]
[EventCountry "TUN"]
[TimeControl "180+3"]

1. e4 {[%emt 0:00:04]} c5 {[%emt 0:00:02]} 2. Nf3 {[%emt 0:00:02]} Nc6 {[%emt 0:00:02]} 3. Bb5 {[%emt 0:00:02]} d6 {[%emt 0:00:02]} 4. d4 {[%emt 0:00:02]} cxd4 {[%emt 0:00:03]} 5. Nxd4 {[%emt 0:00:02]} Bd7 {[%emt 0:00:02]} 6. Nxc6 {[%emt 0:00:03]} Bxc6 {[%emt 0:00:02]} 7. Bxc6+ {[%emt 0:00:02]} bxc6 {[%emt 0:00:02]} 8. Qf3 {[%emt 0:00:02]} g6 {[%emt 0:00:09]} 9. e5 {[%emt 0:00:04]} Qa5+ {[%emt 0:00:06]} 10. Bd2 {[%emt 0:00:03]} Qxe5+ {[%emt 0:00:03]} 11. Be3 {[%emt 0:00:09]} Qa5+ {[%emt 0:00:35]} 12. Nc3 {[%emt 0:00:06]} Qc7 {[%emt 0:00:07]} 13. Nb5 {[%emt 0:00:16]} Qa5+ {[%emt 0:00:08]} 14. Nc3 {[%emt 0:00:04]} Qc7 {[%emt 0:00:02]} 15. O-O {[%emt 0:00:15]} Bg7 {[%emt 0:00:02]} 16. Rfe1 {[%emt 0:00:05]} Nf6 {[%emt 0:00:13]} 17. Bg5 {[%emt 0:00:21]} O-O {[%emt 0:00:08]} 18. Rad1 {[%emt 0:00:06]} Nd7 {[%emt 0:00:22]} 19. Bxe7 {[%emt 0:00:05]} Rfe8 {[%emt 0:00:02]} 20. Bh4 {[%emt 0:00:18]} Bxc3 {[%emt 0:00:15]} 21. bxc3 {[%emt 0:00:03]} Ne5 {[%emt 0:00:02]} 22. Qf6 {[%emt 0:00:14]} d5 {[%emt 0:00:23]} 23. Bg3 {[%emt 0:00:12]} Ng4 {[%emt 0:00:28]} 24. Qh4 {[%emt 0:00:23]} Qd7 {[%emt 0:00:07]} 25. h3 {[%emt 0:00:15]} Ne5 {[%emt 0:00:48]} 26. Bxe5 {[%emt 0:00:09]} Re6 {[%emt 0:00:02]} 27. Bd4 {[%emt 0:00:17]} Rae8 {[%emt 0:00:03]} 28. Rxe6 {[%emt 0:00:03]} Rxe6 {[%emt 0:00:07]} 29. Qh6 {[%emt 0:00:06]} f6 {[%emt 0:00:00]} 30. Rd3 {[%emt 0:00:12]} Re1+ {[%emt 0:00:00]} 31. Kh2 {[%emt 0:00:06]} Qd6+ {[%emt 0:00:02]} 32. g3 {[%emt 0:00:02]} Re2 {[%emt 0:00:03]} 33. Kg2 {[%emt 0:00:07]} c5 {[%emt 0:00:02]} 34. Be3 {[%emt 0:00:09]} Rxc2 {[%emt 0:00:04]} 35. Qf4 {[%emt 0:00:07]} Qxf4 {[%emt 0:00:04]} 36. Bxf4 {[%emt 0:00:02]} Rxa2 {[%emt 0:00:02]} 1-0

[Event "Djerba Festival Blitz 2025"]
[Site "Djerba"]
[Date "2025.02.21"]
[Round "7.33"]
[White "Gunduz, Davud"]
[Black "Zerarga, Imene"]
[Result "1-0"]
[ECO "B92"]
[WhiteElo "1483"]
[BlackElo "1831"]
[PlyCount "113"]
[EventDate "2025.02.15"]
[EventType "swiss"]
[EventCountry "TUN"]
[TimeControl "180+3"]

1. e4 {[%emt 0:00:04]} c5 {[%emt 0:00:02]} 2. Nf3 {[%emt 0:00:03]} d6 {[%emt 0:00:02]} 3. d4 {[%emt 0:00:02]} cxd4 {[%emt 0:00:02]} 4. Nxd4 {[%emt 0:00:02]} Nf6 {[%emt 0:00:02]} 5. Nc3 {[%emt 0:00:02]} a6 {[%emt 0:00:02]} 6. Be3 {[%emt 0:00:04]} e5 {[%emt 0:00:04]} 7. Nb3 {[%emt 0:00:05]} Be6 {[%emt 0:00:02]} 8. Be2 {[%emt 0:00:11]} Be7 {[%emt 0:00:03]} 9. O-O {[%emt 0:00:04]} O-O {[%emt 0:00:03]} 10. h3 {[%emt 0:00:06]} d5 {[%emt 0:00:16]} 11. exd5 {[%emt 0:00:06]} Nxd5 {[%emt 0:00:03]} 12. Nxd5 {[%emt 0:00:20]} Qxd5 {[%emt 0:00:35]} 13. Qxd5 {[%emt 0:02:33]} Bxd5 {[%emt 0:02:26]} 14. Rad1 {[%emt 0:00:00]} Bc6 {[%emt 0:00:00]} 15. Bc5 {[%emt 0:00:00]} Bxc5 {[%emt 0:00:00]} 16. Nxc5 {[%emt 0:00:00]} b6 {[%emt 0:00:00]} 17. Nd3 {[%emt 0:00:00]} Nd7 {[%emt 0:00:00]} 18. Rfe1 {[%emt 0:00:00]} f5 {[%emt 0:00:00]} 19. Nb4 {[%emt 0:00:00]} Nb8 {[%emt 0:00:00]} 20. Nxc6 {[%emt 0:00:00]} Nxc6 {[%emt 0:00:00]} 21. Bc4+ {[%emt 0:00:00]} Kh8 {[%emt 0:00:00]} 22. Bd5 {[%emt 0:00:00]} Rac8 {[%emt 0:00:00]} 23. c3 {[%emt 0:00:00]} e4 {[%emt 0:00:00]} 24. Bxc6 {[%emt 0:00:00]} Rxc6 {[%emt 0:00:00]} 25. Rd7 {[%emt 0:00:00]} b5 {[%emt 0:00:02]} 26. Red1 {[%emt 0:00:00]} Kg8 {[%emt 0:00:11]} 27. Ra7 {[%emt 0:00:00]} Rcf6 {[%emt 0:00:13]} 28. Rdd7 {[%emt 0:00:00]} R8f7 {[%emt 0:00:10]} 29. Rxf7 {[%emt 0:00:00]} Rxf7 {[%emt 0:00:02]} 30. Rxa6 {[%emt 0:00:00]} Rd7 {[%emt 0:00:03]} 31. Rb6 {[%emt 0:00:00]} Rd1+ {[%emt 0:00:04]} 32. Kh2 {[%emt 0:00:00]} Rd2 {[%emt 0:00:02]} 33. Kg3 {[%emt 0:00:00]} Rxb2 {[%emt 0:00:03]} 34. a4 {[%emt 0:00:04]} Rb3 {[%emt 0:00:04]} 35. axb5 {[%emt 0:00:16]} Rxc3+ {[%emt 0:00:03]} 36. Kf4 {[%emt 0:00:02]} g6 {[%emt 0:00:03]} 37. Rc6 {[%emt 0:00:03]} Rb3 {[%emt 0:00:04]} 38. b6 {[%emt 0:00:04]} Rb2 {[%emt 0:00:04]} 39. f3 {[%emt 0:00:20]} exf3 {[%emt 0:00:05]} 40. gxf3 {[%emt 0:00:02]} Kf8 {[%emt 0:00:03]} 41. h4 {[%emt 0:00:09]} Ke8 {[%emt 0:00:03]} 42. Kg5 {[%emt 0:00:07]} Rb3 {[%emt 0:00:05]} 43. f4 {[%emt 0:00:04]} Rb4 {[%emt 0:00:02]} 44. Rc8+ {[%emt 0:00:10]} Kd7 {[%emt 0:00:02]} 45. Rh8 {[%emt 0:00:02]} Rxb6 {[%emt 0:00:03]} 46. Rxh7+ {[%emt 0:00:03]} Ke8 {[%emt 0:00:03]} 47. Rh6 {[%emt 0:00:02]} Kf7 {[%emt 0:00:03]} 48. h5 {[%emt 0:00:04]} Rb2 {[%emt 0:00:05]} 49. hxg6+ {[%emt 0:00:04]} Kg8 {[%emt 0:00:02]} 50. Kxf5 {[%emt 0:00:05]} Rb5+ {[%emt 0:00:02]} 51. Kg4 {[%emt 0:00:02]} Rb6 {[%emt 0:00:02]} 52. f5 {[%emt 0:00:02]} Rb5 {[%emt 0:00:02]} 53. Rh7 {[%emt 0:00:04]} Rb4+ {[%emt 0:00:03]} 54. Kg5 {[%emt 0:00:02]} Rb6 {[%emt 0:00:02]} 55. f6 {[%emt 0:00:04]} Rb5+ {[%emt 0:00:01]} 56. Kh6 {[%emt 0:00:02]} Rb1 {[%emt 0:00:05]} 57. f7+ {[%emt 0:00:05] Kh8 Rxh8} 1-0

[Event "Djerba Festival Blitz 2025"]
[Site "Djerba"]
[Date "2025.02.21"]
[Round "7.37"]
[White "Chaudesaygues, Hugo"]
[Black "Saidi, Bouziane"]
[Result "0-1"]
[ECO "C50"]
[WhiteElo "1624"]
[BlackElo "1710"]
[PlyCount "92"]
[EventDate "2025.02.15"]
[EventType "swiss"]
[EventCountry "TUN"]
[TimeControl "180+3"]

1. e4 {[%emt 0:00:04]} e5 {[%emt 0:00:03]} 2. Nf3 {[%emt 0:00:02]} Nc6 {[%emt 0:00:02]} 3. d4 {[%emt 0:00:01]} exd4 {[%emt 0:00:03]} 4. Bc4 {[%emt 0:00:02]} d6 {[%emt 0:00:22]} 5. Nxd4 {[%emt 0:00:03]} Nxd4 {[%emt 0:00:07]} 6. Qxd4 {[%emt 0:00:03]} Nf6 {[%emt 0:00:03]} 7. O-O {[%emt 0:00:11]} h6 {[%emt 0:00:02]} 8. Nc3 {[%emt 0:00:04]} Be7 {[%emt 0:00:02]} 9. Re1 {[%emt 0:00:04]} O-O {[%emt 0:00:04]} 10. a3 {[%emt 0:00:09]} a6 {[%emt 0:00:02]} 11. h3 {[%emt 0:00:03]} Be6 {[%emt 0:00:08]} 12. Bxe6 {[%emt 0:00:05]} fxe6 {[%emt 0:00:02]} 13. Be3 {[%emt 0:00:10]} e5 {[%emt 0:00:05]} 14. Qc4+ {[%emt 0:00:05]} Kh8 {[%emt 0:00:04]} 15. Nd5 {[%emt 0:00:04]} Nxd5 {[%emt 0:00:06]} 16. Qxd5 {[%emt 0:00:08]} c6 {[%emt 0:00:05]} 17. Qd3 {[%emt 0:00:05]} d5 {[%emt 0:00:04]} 18. exd5 {[%emt 0:00:07]} cxd5 {[%emt 0:00:03]} 19. Qb3 {[%emt 0:00:19]} d4 {[%emt 0:00:06]} 20. Rad1 {[%emt 0:00:05]} Qc7 {[%emt 0:00:07]} 21. Bc1 {[%emt 0:00:10]} Rac8 {[%emt 0:00:04]} 22. Re2 {[%emt 0:00:22]} Bc5 {[%emt 0:00:03]} 23. Qd5 {[%emt 0:00:21]} Rfe8 {[%emt 0:00:15]} 24. b4 {[%emt 0:00:03]} Bd6 {[%emt 0:00:05]} 25. Rd3 {[%emt 0:00:11]} Qc6 {[%emt 0:00:15]} 26. Qxc6 {[%emt 0:00:14]} Rxc6 {[%emt 0:00:02]} 27. Red2 {[%emt 0:00:08]} Be7 {[%emt 0:00:12]} 28. c3 {[%emt 0:00:05]} dxc3 {[%emt 0:00:08]} 29. Rc2 {[%emt 0:00:14]} Rec8 {[%emt 0:00:02]} 30. Be3 {[%emt 0:00:08]} Bf6 {[%emt 0:00:05]} 31. f3 {[%emt 0:00:10]} b5 {[%emt 0:00:05]} 32. Rd7 {[%emt 0:00:03]} R8c7 {[%emt 0:00:06]} 33. Rxc7 {[%emt 0:00:04]} Rxc7 {[%emt 0:00:02]} 34. Kf2 {[%emt 0:00:04]} Kg8 {[%emt 0:00:05]} 35. f4 {[%emt 0:00:02]} exf4 {[%emt 0:00:04]} 36. Bxf4 {[%emt 0:00:05]} Rc6 {[%emt 0:00:03]} 37. Ke3 {[%emt 0:00:06]} Kf7 {[%emt 0:00:07]} 38. g4 {[%emt 0:00:02]} g5 {[%emt 0:00:03]} 39. Bg3 {[%emt 0:00:05]} Ke6 {[%emt 0:00:05]} 40. Kd3 {[%emt 0:00:04]} Kd5 {[%emt 0:00:05]} 41. Bf2 {[%emt 0:00:07]} Re6 {[%emt 0:00:08]} 42. Bg1 {[%emt 0:00:11]} Re1 {[%emt 0:00:06]} 43. Bf2 {[%emt 0:00:03]} Rh1 {[%emt 0:00:05]} 44. Rxc3 {[%emt 0:00:12]} Bxc3 {[%emt 0:00:02]} 45. Kxc3 {[%emt 0:00:02]} Rxh3+ {[%emt 0:00:03]} 46. Kb2 {[%emt 0:00:02]} Rh2 {[%emt 0:00:02]} 0-1

[Event "Djerba Festival Blitz 2025"]
[Site "Djerba"]
[Date "2025.02.21"]
[Round "7.38"]
[White "Badrakova, Kseniya"]
[Black "Raymond, Andre"]
[Result "1-0"]
[ECO "C24"]
[WhiteElo "1757"]
[BlackElo "1610"]
[PlyCount "52"]
[EventDate "2025.02.15"]
[EventType "swiss"]
[EventCountry "TUN"]
[TimeControl "180+3"]

1. e4 {[%emt 0:00:04]} e5 {[%emt 0:00:03]} 2. Bc4 {[%emt 0:00:02]} Nf6 {[%emt 0:00:02]} 3. d4 {[%emt 0:00:03]} Nc6 {[%emt 0:00:11]} 4. d5 {[%emt 0:00:06]} Ne7 {[%emt 0:00:02]} 5. Nf3 {[%emt 0:03:03]} d6 {[%emt 0:00:02]} 6. Nc3 {[%emt 0:00:00]} Bg4 {[%emt 0:00:02]} 7. h3 {[%emt 0:00:00]} Bh5 {[%emt 0:00:02]} 8. Bg5 {[%emt 0:00:00]} Nd7 {[%emt 0:00:12]} 9. Qe2 {[%emt 0:00:00]} f6 {[%emt 0:00:02]} 10. Be3 {[%emt 0:00:00]} Bg6 {[%emt 0:00:15]} 11. Bd3 {[%emt 0:00:00]} f5 {[%emt 0:00:11]} 12. exf5 {[%emt 0:00:00]} Nxf5 {[%emt 0:00:05]} 13. Bg5 {[%emt 0:00:00]} Be7 {[%emt 0:00:14]} 14. Bxe7 {[%emt 0:00:00]} Qxe7 {[%emt 0:00:06]} 15. g4 {[%emt 0:00:00]} Nh6 {[%emt 0:00:16]} 16. Bxg6+ {[%emt 0:00:00]} hxg6 {[%emt 0:00:02]} 17. Qe4 {[%emt 0:00:00]} O-O-O {[%emt 0:00:18]} 18. Qxg6 {[%emt 0:00:00]} Rdf8 {[%emt 0:00:03]} 19. Qe4 {[%emt 0:00:01]} Rf4 {[%emt 0:00:09]} 20. Qe3 {[%emt 0:00:04]} Rhf8 {[%emt 0:00:04]} 21. Nd2 {[%emt 0:00:14]} Qh4 {[%emt 0:00:03]} 22. O-O-O {[%emt 0:00:14]} Rxf2 {[%emt 0:00:23]} 23. Qxa7 {[%emt 0:00:05]} Nb8 {[%emt 0:00:02]} 24. Qe3 {[%emt 0:00:09]} Qf6 {[%emt 0:00:51]} 25. Nce4 {[%emt 0:00:03]} Qf4 {[%emt 0:00:06]} 26. Qb3 {[%emt 0:00:13]} Rf3 {[%emt 0:00:35]} 1-0

[Event "Djerba Festival Blitz 2025"]
[Site "Djerba"]
[Date "2025.02.21"]
[Round "7.40"]
[White "Charfeddine, Khaled"]
[Black "Doucet, Jean Gabriel"]
[Result "1/2-1/2"]
[ECO "E61"]
[WhiteElo "1908"]
[BlackElo "1506"]
[PlyCount "184"]
[EventDate "2025.02.15"]
[EventType "swiss"]
[EventCountry "TUN"]
[TimeControl "180+3"]

1. d4 {[%emt 0:00:05]} Nf6 {[%emt 0:00:03]} 2. c4 {[%emt 0:00:01]} g6 {[%emt 0:00:02]} 3. Nc3 {[%emt 0:00:02]} Bg7 {[%emt 0:00:01]} 4. Bf4 {[%emt 0:00:03]} d6 {[%emt 0:00:02]} 5. Qd2 {[%emt 0:00:03]} O-O {[%emt 0:00:02]} 6. Bh6 {[%emt 0:00:01]} c5 {[%emt 0:00:03]} 7. Bxg7 {[%emt 0:00:04]} Kxg7 {[%emt 0:00:01]} 8. e3 {[%emt 0:00:03]} cxd4 {[%emt 0:00:03]} 9. exd4 {[%emt 0:00:02]} e5 {[%emt 0:00:02]} 10. d5 {[%emt 0:00:03]} Nbd7 {[%emt 0:00:09]} 11. Be2 {[%emt 0:00:03]} Nb6 {[%emt 0:00:03]} 12. Nf3 {[%emt 0:00:05]} e4 {[%emt 0:00:04]} 13. Nd4 {[%emt 0:00:03]} Bd7 {[%emt 0:00:11]} 14. O-O {[%emt 0:00:04]} Ne8 {[%emt 0:00:08]} 15. Nxe4 {[%emt 0:00:09]} f5 {[%emt 0:00:08]} 16. Nc3 {[%emt 0:00:19]} Rc8 {[%emt 0:00:10]} 17. b3 {[%emt 0:00:04]} a5 {[%emt 0:00:03]} 18. Rae1 {[%emt 0:00:06]} a4 {[%emt 0:00:02]} 19. h3 {[%emt 0:00:21]} axb3 {[%emt 0:00:04]} 20. axb3 {[%emt 0:00:02]} Qf6 {[%emt 0:00:03]} 21. Ncb5 {[%emt 0:00:21]} Kg8 {[%emt 0:00:13]} 22. Bf3 {[%emt 0:00:10]} Nc7 {[%emt 0:00:10]} 23. Nxc7 {[%emt 0:00:07]} Rxc7 {[%emt 0:00:03]} 24. Nb5 {[%emt 0:00:02]} Bxb5 {[%emt 0:00:02]} 25. cxb5 {[%emt 0:00:02]} Rc5 {[%emt 0:00:08]} 26. Qb4 {[%emt 0:00:09]} Nxd5 {[%emt 0:00:08]} 27. Qd2 {[%emt 0:00:22]} Nc7 {[%emt 0:00:19]} 28. Bxb7 {[%emt 0:00:04]} Rxb5 {[%emt 0:00:03]} 29. Bc6 {[%emt 0:00:19]} Rxb3 {[%emt 0:00:06]} 30. Bd5+ {[%emt 0:00:03]} Nxd5 {[%emt 0:00:03]} 31. Qxd5+ Qf7 {[%emt 0:00:02]} 32. Qxd6 {[%emt 0:00:04]} Rb7 {[%emt 0:00:10]} 33. Rd1 {[%emt 0:00:10]} Re8 {[%emt 0:00:10]} 34. Rfe1 {[%emt 0:00:07]} Rbb8 {[%emt 0:00:21]} 35. Rxe8+ {[%emt 0:00:15]} Rxe8 {[%emt 0:00:04]} 36. Rc1 {[%emt 0:00:06]} Qe7 {[%emt 0:00:10]} 37. Qd5+ {[%emt 0:00:04]} Qe6 {[%emt 0:00:02]} 38. Qc5 {[%emt 0:00:08]} Qe7 {[%emt 0:00:02]} 39. Qc4+ {[%emt 0:00:03]} Qe6 {[%emt 0:00:02]} 40. Qc3 {[%emt 0:00:04]} Qe5 {[%emt 0:00:05]} 41. Qc2 {[%emt 0:00:04]} Qe4 {[%emt 0:00:06]} 42. Qb2 {[%emt 0:00:05]} Qe5 {[%emt 0:00:02]} 43. Qb7 {[%emt 0:00:07]} Qe7 {[%emt 0:00:05]} 44. Qf3 {[%emt 0:00:06]} Qe4 {[%emt 0:00:04]} 45. Qa3 {[%emt 0:00:06]} Qe7 {[%emt 0:00:03]} 46. Qxe7 {[%emt 0:00:03]} Rxe7 {[%emt 0:00:02]} 47. Kh2 {[%emt 0:00:04]} Kf7 {[%emt 0:00:01]} 48. Kg3 {[%emt 0:00:02]} Kf6 {[%emt 0:00:02]} 49. Rc6+ {[%emt 0:00:03]} Kg5 {[%emt 0:00:04]} 50. h4+ {[%emt 0:00:05]} Kh5 {[%emt 0:00:02]} 51. Rc4 {[%emt 0:00:12]} h6 {[%emt 0:00:02]} 52. Kh3 {[%emt 0:00:07]} Re2 {[%emt 0:00:06]} 53. f3 {[%emt 0:00:03]} g5 {[%emt 0:00:07]} 54. g4+ {[%emt 0:00:04]} fxg4+ {[%emt 0:00:06]} 55. fxg4+ {[%emt 0:00:02]} Kg6 {[%emt 0:00:03]} 56. Rc6+ {[%emt 0:00:04]} Kg7 {[%emt 0:00:03]} 57. h5 {[%emt 0:00:03]} Re3+ {[%emt 0:00:04]} 58. Kg2 {[%emt 0:00:03]} Re2+ {[%emt 0:00:05]} 59. Kf3 {[%emt 0:00:03]} Re1 {[%emt 0:00:05]} 60. Rg6+ {[%emt 0:00:03]} Kh7 {[%emt 0:00:02]} 61. Rb6 {[%emt 0:00:02]} Rf1+ {[%emt 0:00:04]} 62. Kg2 {[%emt 0:00:03]} Rd1 {[%emt 0:00:03]} 63. Rb7+ {[%emt 0:00:02]} Kg8 {[%emt 0:00:03]} 64. Kf3 {[%emt 0:00:04]} Rf1+ {[%emt 0:00:03]} 65. Kg2 {[%emt 0:00:03]} Rc1 {[%emt 0:00:02]} 66. Rb2 {[%emt 0:00:05]} Rc4 {[%emt 0:00:04]} 67. Kf3 {[%emt 0:00:04]} Rf4+ {[%emt 0:00:02]} 68. Kg3 {[%emt 0:00:02]} Re4 {[%emt 0:00:02]} 69. Rf2 {[%emt 0:00:03]} Kg7 {[%emt 0:00:02]} 70. Rf3 {[%emt 0:00:03]} Re2 {[%emt 0:00:03]} 71. Rb3 {[%emt 0:00:02]} Rc2 {[%emt 0:00:03]} 72. Rb7+ {[%emt 0:00:04]} Kf6 {[%emt 0:00:02]} 73. Rb6+ {[%emt 0:00:02]} Kg7 {[%emt 0:00:03]} 74. Rg6+ {[%emt 0:00:02]} Kh7 {[%emt 0:00:02]} 75. Rf6 {[%emt 0:00:02]} Rc1 {[%emt 0:00:11]} 76. Rf7+ {[%emt 0:00:03]} Kg8 {[%emt 0:01:01]} 77. Rb7 {[%emt 0:00:04]} Rg1+ {[%emt 0:00:00]} 78. Kf3 {[%emt 0:00:02]} Rf1+ {[%emt 0:00:00]} 79. Ke4 {[%emt 0:00:06]} Rf4+ {[%emt 0:00:00]} 80. Ke5 {[%emt 0:00:02]} Rxg4 {[%emt 0:00:00]} 81. Kf6 {[%emt 0:00:02]} Rf4+ {[%emt 0:00:00]} 82. Kg6 {[%emt 0:00:02]} Kf8 {[%emt 0:00:00]} 83. Kxh6 {[%emt 0:00:03]} g4 {[%emt 0:00:00]} 84. Kg6 {[%emt 0:00:10]} g3 {[%emt 0:00:00]} 85. Rb3 {[%emt 0:00:02]} Rg4+ {[%emt 0:00:00]} 86. Kf5 {[%emt 0:00:05]} Rg8 {[%emt 0:00:05]} 87. Rb1 {[%emt 0:00:03]} g2 {[%emt 0:00:05]} 88. Rg1 {[%emt 0:00:02]} Kf7 {[%emt 0:00:02]} 89. Kf4 {[%emt 0:00:02]} Kf6 {[%emt 0:00:04]} 90. Kf3 {[%emt 0:00:03]} Kf5 {[%emt 0:00:06]} 91. Rxg2 {[%emt 0:00:04]} Rxg2 {[%emt 0:00:03]} 92. Kxg2 {[%emt 0:00:03]} Kg5 {[%emt 0:00:02]} 1/2-1/2

[Event "Djerba Festival Blitz 2025"]
[Site "Djerba"]
[Date "2025.02.21"]
[Round "7.41"]
[White "Feurprier, Matteo"]
[Black "Mendil, Yacine"]
[Result "0-1"]
[ECO "B84"]
[WhiteElo "1537"]
[BlackElo "1699"]
[PlyCount "98"]
[EventDate "2025.02.15"]
[EventType "swiss"]
[EventCountry "TUN"]
[TimeControl "180+3"]

1. e4 {[%emt 0:00:03]} c5 {[%emt 0:00:02]} 2. Nf3 {[%emt 0:00:02]} d6 {[%emt 0:00:03]} 3. d4 {[%emt 0:00:01]} cxd4 {[%emt 0:00:02]} 4. Nxd4 {[%emt 0:00:02]} a6 {[%emt 0:00:02]} 5. Nc3 {[%emt 0:00:04]} e6 {[%emt 0:00:04]} 6. Be2 {[%emt 0:00:04]} Be7 {[%emt 0:00:02]} 7. Be3 {[%emt 0:00:03]} Nf6 {[%emt 0:00:03]} 8. O-O {[%emt 0:00:06]} O-O {[%emt 0:00:03]} 9. Qd2 {[%emt 0:00:13]} b5 {[%emt 0:00:04]} 10. Rad1 {[%emt 0:00:03]} b4 {[%emt 0:00:04]} 11. Nb1 {[%emt 0:00:10]} Nxe4 {[%emt 0:00:03]} 12. Qd3 {[%emt 0:00:03]} Nc5 {[%emt 0:00:03]} 13. Qd2 {[%emt 0:00:04]} Bb7 {[%emt 0:00:02]} 14. Bf3 {[%emt 0:00:17]} Bxf3 {[%emt 0:00:05]} 15. Nxf3 {[%emt 0:00:02]} a5 {[%emt 0:00:02]} 16. c3 {[%emt 0:00:27]} bxc3 {[%emt 0:00:11]} 17. Nxc3 {[%emt 0:00:03]} d5 {[%emt 0:00:12]} 18. Ne5 {[%emt 0:00:22]} Nbd7 {[%emt 0:00:02]} 19. Nc6 {[%emt 0:00:05]} Qe8 {[%emt 0:00:08]} 20. Nb5 {[%emt 0:00:02]} Rc8 {[%emt 0:00:20]} 21. Nxe7+ {[%emt 0:00:22]} Qxe7 {[%emt 0:00:06]} 22. Qxa5 {[%emt 0:00:08]} Ra8 {[%emt 0:00:13]} 23. Qb4 {[%emt 0:00:03]} Rxa2 {[%emt 0:00:07]} 24. Rc1 {[%emt 0:00:06]} Ra4 {[%emt 0:00:16]} 25. Bxc5 {[%emt 0:00:09]} Nxc5 {[%emt 0:00:07]} 26. Qxc5 {[%emt 0:00:03]} Qxc5 {[%emt 0:00:07]} 27. Rxc5 {[%emt 0:00:02]} Rb4 {[%emt 0:00:04]} 28. Nd6 {[%emt 0:00:19]} Rxb2 {[%emt 0:00:04]} 29. Rfc1 {[%emt 0:00:03]} g6 {[%emt 0:00:06]} 30. h3 {[%emt 0:00:01]} Kg7 {[%emt 0:00:07]} 31. Rc7 {[%emt 0:00:03]} h5 {[%emt 0:00:13]} 32. Rd7 {[%emt 0:00:05]} Kf6 {[%emt 0:00:16]} 33. Rcc7 {[%emt 0:00:04]} Rb1+ {[%emt 0:00:11]} 34. Kh2 {[%emt 0:00:02]} Ke5 {[%emt 0:00:11]} 35. Nxf7+ {[%emt 0:00:07]} Kd4 {[%emt 0:00:04]} 36. Re7 {[%emt 0:00:15]} e5 {[%emt 0:00:10]} 37. Rxe5 {[%emt 0:00:03]} Rxf7 {[%emt 0:00:06]} 38. Rxd5+ {[%emt 0:00:08]} Kxd5 {[%emt 0:00:04]} 39. Rxf7 {[%emt 0:00:02]} Rb6 {[%emt 0:00:05]} 40. Rf3 {[%emt 0:00:03]} Re6 {[%emt 0:00:12]} 41. Re3 {[%emt 0:00:04]} Rxe3 {[%emt 0:00:07]} 42. fxe3 {[%emt 0:00:02]} Ke4 {[%emt 0:00:01]} 43. Kg3 {[%emt 0:00:03]} Kxe3 {[%emt 0:00:02]} 44. Kh4 {[%emt 0:00:42]} Kf2 {[%emt 0:00:07]} 45. Kg5 {[%emt 0:00:00]} Kxg2 {[%emt 0:00:04]} 46. Kxg6 {[%emt 0:00:00]} h4 {[%emt 0:00:03]} 47. Kg5 {[%emt 0:00:00]} Kxh3 {[%emt 0:00:03]} 48. Kf4 {[%emt 0:00:00]} Kg2 {[%emt 0:00:02]} 49. Kg4 {[%emt 0:00:00]} h3 {[%emt 0:00:02]} 0-1

[Event "Djerba Festival Blitz 2025"]
[Site "Djerba"]
[Date "2025.02.21"]
[Round "7.43"]
[White "Baba, Ayoub"]
[Black "Chabbouh, Mohamed Rayen"]
[Result "0-1"]
[ECO "C25"]
[WhiteElo "1469"]
[BlackElo "1518"]
[PlyCount "62"]
[EventDate "2025.02.15"]
[EventType "swiss"]
[EventCountry "TUN"]
[TimeControl "180+3"]

1. e4 {[%emt 0:03:06]} e5 {[%emt 0:03:06]} 2. Nc3 {[%emt 0:00:03]} Nc6 3. Bc4 {[%emt 0:00:03]} Bb4 4. Nge2 {[%emt 0:00:03]} Nf6 {[%emt 0:00:09]} 5. a3 {[%emt 0:00:03]} Bxc3 6. Nxc3 O-O {[%emt 0:00:06]} 7. d3 {[%emt 0:00:06]} d6 {[%emt 0:00:03]} 8. Be3 {[%emt 0:00:03]} Re8 {[%emt 0:00:03]} 9. Qd2 {[%emt 0:00:03]} Be6 {[%emt 0:00:03]} 10. Bxe6 {[%emt 0:00:03]} Rxe6 {[%emt 0:00:03]} 11. f4 {[%emt 0:00:03]} exf4 {[%emt 0:00:03]} 12. Bxf4 {[%emt 0:00:03]} d5 {[%emt 0:00:03]} 13. e5 {[%emt 0:00:03]} Nh5 {[%emt 0:00:03]} 14. O-O-O {[%emt 0:00:03]} Nxf4 {[%emt 0:00:03]} 15. Qxf4 {[%emt 0:00:03]} Rxe5 {[%emt 0:00:03]} 16. Rhf1 {[%emt 0:00:03]} f6 {[%emt 0:00:03]} 17. Rf3 {[%emt 0:00:03]} Qd6 {[%emt 0:00:03]} 18. h4 {[%emt 0:00:03]} d4 {[%emt 0:00:03]} 19. Ne4 {[%emt 0:00:03]} Qe6 {[%emt 0:00:03]} 20. g4 {[%emt 0:00:03]} Ne7 {[%emt 0:00:03]} 21. g5 {[%emt 0:00:03]} Nd5 {[%emt 0:00:03]} 22. Qg3 {[%emt 0:00:03]} f5 {[%emt 0:00:03]} 23. h5 {[%emt 0:00:03]} fxe4 {[%emt 0:00:03]} 24. dxe4 {[%emt 0:00:03]} Ne3 {[%emt 0:00:03]} 25. Rxd4 {[%emt 0:00:03]} Rxe4 {[%emt 0:00:03]} 26. Rxe4 {[%emt 0:00:03]} Qxe4 27. Rxe3 {[%emt 0:00:03]} Qh1+ {[%emt 0:00:06]} 28. Re1 {[%emt 0:00:03]} Qxh5 {[%emt 0:00:03]} 29. Qb3+ {[%emt 0:00:03]} Kh8 {[%emt 0:00:03]} 30. Kb1 {[%emt 0:00:03]} Qxg5 {[%emt 0:00:03]} 31. Re7 {[%emt 0:00:03]} Qxe7 {[%emt 0:00:03]} 0-1

[Event "Djerba Festival Blitz 2025"]
[Site "Djerba"]
[Date "2025.02.21"]
[Round "7.44"]
[White "Soudani, Hassan"]
[Black "Khider, Amilia"]
[Result "1-0"]
[ECO "B20"]
[WhiteElo "1598"]
[BlackElo "1524"]
[PlyCount "62"]
[EventDate "2025.02.15"]
[EventType "swiss"]
[EventCountry "TUN"]
[TimeControl "180+3"]

1. e4 {[%emt 0:00:04]} c5 {[%emt 0:00:03]} 2. Nc3 {[%emt 0:00:04]} Nc6 {[%emt 0:00:03]} 3. Bc4 {[%emt 0:00:04]} e6 {[%emt 0:00:09]} 4. d3 {[%emt 0:00:05]} Nge7 {[%emt 0:00:14]} 5. a3 {[%emt 0:00:02]} d5 {[%emt 0:00:08]} 6. Ba2 {[%emt 0:00:04]} d4 {[%emt 0:00:17]} 7. Nce2 {[%emt 0:00:15]} g6 {[%emt 0:00:06]} 8. Bg5 {[%emt 0:00:16]} Bg7 {[%emt 0:00:07]} 9. Qd2 {[%emt 0:00:04]} h5 {[%emt 0:02:23]} 10. f4 {[%emt 0:00:05]} a6 {[%emt 0:00:00]} 11. Nf3 {[%emt 0:00:13]} b5 {[%emt 0:00:00]} 12. e5 {[%emt 0:00:25]} Qb6 {[%emt 0:00:00]} 13. O-O {[%emt 0:00:12]} Nf5 {[%emt 0:00:00]} 14. c3 {[%emt 0:00:15]} Bb7 {[%emt 0:00:00]} 15. Bf6 {[%emt 0:00:08]} Bxf6 {[%emt 0:00:00]} 16. exf6 {[%emt 0:00:02]} Qd8 {[%emt 0:00:00]} 17. Ne5 {[%emt 0:00:15]} Qxf6 {[%emt 0:00:00]} 18. cxd4 {[%emt 0:00:23]} Ncxd4 {[%emt 0:00:00]} 19. Nxd4 {[%emt 0:00:06]} Nxd4 {[%emt 0:00:00]} 20. Qa5 {[%emt 0:00:12]} Qd8 {[%emt 0:00:00]} 21. Qc3 {[%emt 0:00:06]} Ne2+ {[%emt 0:00:00]} 22. Kh1 {[%emt 0:00:03]} Nxc3 {[%emt 0:00:00]} 23. bxc3 {[%emt 0:00:03]} O-O {[%emt 0:00:01]} 24. d4 {[%emt 0:00:07]} cxd4 {[%emt 0:00:06]} 25. Rad1 {[%emt 0:00:03]} Bd5 {[%emt 0:00:11]} 26. Bb1 {[%emt 0:00:06]} dxc3 {[%emt 0:00:07]} 27. Bc2 {[%emt 0:00:03]} Qa5 {[%emt 0:00:11]} 28. Rd3 {[%emt 0:00:10]} Qxa3 {[%emt 0:00:05]} 29. Rg3 {[%emt 0:00:05]} Kh7 {[%emt 0:00:06]} 30. Nd7 {[%emt 0:00:12]} Rfd8 {[%emt 0:00:04]} 31. Nf6+ {[%emt 0:00:02]} Kg7 {[%emt 0:00:04]} 1-0